bitfinex-derivatives/quotes_ETHF0:USTF0_20250918
["timestamp","ask_amount","ask_price","bid_price","bid_amount"]
[1758154514674,1e-08,4609.0,4608.9,2.21372527]
[1758154515068,0.69260001,4609.0,4608.9,0.9834]
[1758154515469,1.12170001,4609.0,4608.9,0.5725]
[1758154515676,1.12170001,4609.0,4608.9,0.2856]
[1758154516077,0.96060001,4609.0,4608.9,0.9834]
[1758154516278,1e-08,4609.0,4608.9,0.5725]
[1758154516680,1e-08,4609.0,4608.9,4.5725]
[1758154518082,1e-08,4609.0,4608.9,5.80282527]
[1758154518885,1e-08,4609.0,4608.9,0.5725]
[1758154518886,1.12170001,4609.0,4608.9,0.5725]
[1758154519087,0.42470001,4609.0,4608.9,0.9834]
[1758154519289,1e-08,4609.0,4608.9,0.5725]
[1758154519881,0.69260001,4609.0,4608.9,0.9834]
[1758154520384,0.96060001,4609.0,4608.9,0.9834]
[1758154521083,1.12170001,4609.0,4608.9,0.5725]
[1758154521283,1.12170001,4609.0,4608.8,1.62070527]
[1758154521284,0.69700001,4609.0,4608.8,1.62070527]
[1758154521590,0.9606,4608.9,4608.8,2.21372527]
[1758154521779,0.9606,4608.9,4608.8,0.2856]
[1758154521979,0.9606,4608.9,4608.6,3.5982]
[1758154522187,0.4247,4608.8,4608.6,3.5982]
[1758154522584,0.9606,4608.7,4608.6,3.4934]
[1758154523186,0.9606,4608.7,4608.6,5.42152527]
[1758154523383,1.50065648,4608.7,4608.6,5.42152527]
[1758154523590,1.50065648,4608.7,4608.6,5.01062527]
[1758154524982,1.50065648,4608.7,4608.6,5.42152527]
[1758154525178,0.9606,4608.7,4608.6,5.42152527]
[1758154526395,0.9606,4608.7,4608.6,4.1912]
[1758154526892,0.9606,4608.7,4608.6,4.5816]
[1758154527089,0.222,4608.7,4608.6,5.81192527]
[1758154528186,0.4247,4608.9,4608.6,5.81192527]
[1758154528394,1e-08,4609.0,4608.9,0.4109]
[1758154528594,0.22200001,4609.0,4608.9,2.21372527]
[1758154528787,1.02975114,4609.0,4608.9,2.21372527]
[1758154528986,1.45445113,4609.0,4608.9,2.21372527]
[1758154529491,1.23245113,4609.0,4608.9,2.21372527]
[1758154529693,1.02975113,4609.0,4608.9,2.21372527]
[1758154530794,0.4899,4609.0,4608.9,2.21372527]
[1758154531794,0.4899,4609.0,4608.9,0.9834]
[1758154531994,0.4899,4609.0,4608.9,2.21372527]
[1758154532397,0.9146,4609.0,4608.9,2.21372527]
[1758154534594,0.6926,4609.0,4608.9,2.21372527]
[1758154534796,0.9146,4609.0,4608.9,2.21372527]
[1758154535795,1.3378,4609.0,4608.9,2.21372527]
[1758154535990,1.3378,4609.0,4608.9,0.9834]
[1758154536890,1.3378,4609.0,4608.9,0.5725]
[1758154537090,0.9415,4608.7,4608.6,3.4936]
[1758154537596,1.48140574,4608.7,4608.6,3.4936]
[1758154537794,1.48140574,4608.7,4608.6,3.915]
[1758154537994,1.48140574,4608.7,4608.6,3.4936]
[1758154538393,1.48140574,4608.7,4608.6,3.2078]
[1758154538899,1.48140574,4608.7,4608.6,3.4936]
[1758154539597,1.48140574,4608.7,4608.6,3.915]
[1758154539796,1.48140574,4608.7,4608.6,4.97844599]
[1758154541302,1.48134136,4608.7,4608.6,4.55704599]
[1758154542202,1.48134136,4608.7,4608.6,4.97844599]
[1758154543202,1.48134136,4608.7,4608.6,5.26344599]
[1758154548106,1.48134136,4608.7,4608.6,4.2]
[1758154549503,1.48134136,4608.7,4608.6,3.7786]
[1758154549708,0.9415,4608.4,4608.3,0.3074]
[1758154549907,1.1635,4608.4,4608.3,0.3074]
[1758154550208,1.1635,4608.4,4608.3,0.7288]
[1758154550710,1.1635,4608.4,4608.3,1.11923]
[1758154551010,1.1635,4608.4,4608.3,1.0138]
[1758154551203,1.70380569,4608.4,4608.3,1.0138]
[1758154551609,1.48180569,4608.4,4608.3,1.0138]
[1758154551910,1.70380569,4608.4,4608.3,1.0138]
[1758154553906,0.54030569,4608.4,4608.3,1.0138]
[1758154554102,0.222,4608.4,4608.3,1.0138]
[1758154555310,1.1635,4608.4,4608.3,1.0138]
[1758154555510,0.9053,4608.4,4608.3,2.07724599]
[1758154555710,0.6833,4608.4,4608.3,2.07724599]
[1758154556013,0.9053,4608.4,4608.3,2.07724599]
[1758154556208,0.5012,4608.4,4608.3,2.07724599]
[1758154557614,0.222,4608.4,4608.3,2.07724599]
[1758154558609,0.2709,4608.7,4608.6,0.5231]
[1758154558816,1.44824466,4608.7,4608.6,1.97864599]
[1758154559405,1.71204466,4608.7,4608.6,0.9152]
[1758154565410,0.4151,4609.5,4609.4,0.39034]
[1758154565608,0.76249456,4609.5,4609.4,2.35538599]
[1758154566414,0.76249456,4609.5,4609.4,1.96504599]
[1758154566620,1.15119456,4609.5,4609.4,1.96504599]
[1758154566918,1.15119456,4609.5,4609.4,2.35538599]
[1758154567120,0.6641,4609.8,4609.7,0.8909]
[1758154567319,0.8861,4609.8,4609.7,0.8909]
[1758154567523,0.8861,4609.8,4609.7,1.95434599]
[1758154568412,1.1436,4609.8,4609.7,0.8909]
[1758154568614,1.1436,4609.8,4609.7,0.2595]
[1758154568820,0.9216,4609.4,4609.3,0.2595]
[1758154569020,0.6641,4609.4,4609.3,0.8909]
[1758154569221,35.154,4609.9,4609.2,1.06344599]
[1758154569222,35.4294,4609.9,4609.8,0.5124]
[1758154569513,35.6514,4609.9,4609.8,0.8909]
[1758154569721,36.0401,4609.9,4609.8,0.8909]
[1758154569929,35.8181,4609.9,4609.8,0.8909]
[1758154570116,36.2976,4609.9,4609.8,0.8909]
[1758154571124,36.0756,4609.9,4609.8,0.8909]
[1758154571426,36.2976,4609.9,4609.8,0.8909]
[1758154571923,36.0756,4609.9,4609.8,0.8909]
[1758154572124,36.2976,4609.9,4609.8,0.8909]
[1758154572720,36.2976,4609.9,4609.8,0.5124]
[1758154574626,36.2976,4609.9,4609.8,0.2595]
[1758154575731,36.2976,4609.9,4609.8,0.8909]
[1758154575922,36.2976,4609.9,4609.8,0.5124]
[1758154576119,36.2976,4609.9,4609.8,0.2595]
[1758154576728,37.36104599,4609.9,4609.8,0.2595]
[1758154576928,37.36104599,4609.9,4609.6,0.0216]
[1758154577131,37.36104599,4609.9,4609.6,0.4001]
[1758154577332,36.2976,4609.9,4609.6,0.4001]
[1758154578531,36.2976,4609.9,4609.6,0.0216]
[1758154579424,1.06344599,4609.8,4609.6,0.0216]
[1758154579629,1.06344599,4609.8,4608.6,3.2078]
[1758154579630,1.29039299,4609.7,4608.6,3.2078]
[1758154579828,0.9216,4608.7,4608.6,3.2078]
[1758154580124,1.1436,4608.7,4608.4,0.3785]
[1758154580321,0.7549,4608.7,4608.4,0.3785]
[1758154580520,0.2754,4608.4,4608.3,1.70676599]
[1758154580729,1.1436,4608.4,4608.3,2.34476599]
[1758154581128,1.1436,4608.4,4608.3,1.95434599]
[1758154581323,1.1436,4608.4,4608.3,0.2595]
[1758154581528,0.3887,4608.3,4608.1,3.5863]
[1758154581723,1.1436,4608.2,4608.1,3.8458]
[1758154581937,1.1436,4608.2,4608.1,5.55259599]
[1758154583231,1.16449396,4608.2,4608.1,5.55259599]
[1758154584327,1.17338106,4608.2,4608.1,5.55259599]
[1758154586232,1.17338106,4608.2,4608.1,5.16214599]
[1758154586732,0.95138106,4608.2,4608.1,5.16214599]
[1758154586932,1.17338106,4608.2,4608.1,5.16214599]
[1758154590630,1.17338106,4608.2,4608.1,4.0987]
[1758154590838,1.17338106,4608.2,4608.1,0.638]
[1758154591745,1.17338106,4608.2,4608.1,1.70144599]
[1758154593434,1.17338106,4608.2,4608.1,1.95434599]
[1758154594540,1.17338106,4608.2,4608.1,0.2595]
[1758154594742,1.17338106,4608.2,4608.1,0.638]
[1758154595236,0.5329,4607.7,4607.6,0.5124]
[1758154595443,1.1436,4607.7,4607.6,1.95434599]
[1758154595643,0.222,4607.7,4607.6,0.8909]
[1758154596242,41.2065,4608.0,4607.6,0.8909]
[1758154596243,40.8,4608.0,4607.6,0.5124]
[1758154596540,0.02978106,4607.7,4607.6,1.27909]
[1758154598438,0.02978106,4607.7,4607.6,0.8886]
[1758154598639,0.70498106,4607.7,4607.6,0.8886]
[1758154598939,0.95668106,4607.7,4607.6,1.95204599]
[1758154599339,0.95668106,4607.7,4607.6,0.8886]
[1758154599636,0.29848106,4607.7,4607.6,0.8886]
[1758154601240,0.70498106,4607.7,4607.6,0.8886]
[1758154601846,0.29848106,4607.7,4607.6,2.11956808]
[1758154602138,0.02978106,4607.7,4607.6,2.11956808]
[1758154602338,0.25078106,4607.7,4607.6,0.8886]
[1758154602545,0.92598106,4607.7,4607.6,2.11956808]
[1758154602844,0.51948106,4607.7,4607.6,2.11956808]
[1758154603443,0.92598106,4607.7,4607.6,2.11956808]
[1758154605146,0.92598106,4607.7,4607.6,2.51005808]
[1758154605640,0.02978106,4607.7,4607.6,2.51005808]
[1758154605944,0.25078106,4607.7,4607.6,2.51005808]
[1758154607149,1.17768106,4607.7,4607.6,2.51005808]
[1758154607744,1.17768106,4607.7,4607.6,2.11956808]
[1758154608941,0.95668106,4607.7,4607.6,2.11956808]
[1758154609149,1.17768106,4607.7,4607.6,2.11956808]
[1758154609944,1.17768106,4607.7,4607.6,0.8886]
[1758154611339,0.5204,4607.3,4607.2,0.3762]
[1758154611549,0.6733,4607.0,4606.9,0.194]
[1758154611748,1.83754694,4607.0,4606.9,0.194]
[1758154611948,0.5204,4606.7,4606.6,0.2555]
[1758154612147,0.9269,4606.7,4606.6,0.8868]
[1758154612451,0.95668106,4606.7,4606.6,0.8868]
[1758154613349,1.17768106,4606.7,4606.6,0.8868]
[1758154613554,0.95668106,4606.7,4606.6,0.8868]
[1758154613851,1.17768106,4606.7,4606.6,0.8868]
[1758154614444,0.95668106,4606.7,4606.6,0.8868]
[1758154614751,1.17768106,4606.7,4606.6,0.8868]
[1758154617246,1.17768106,4606.7,4606.6,0.2555]
[1758154617451,0.4065,4606.6,4606.5,3.2078]
[1758154617641,0.9269,4606.6,4606.5,3.2078]
[1758154618354,0.9246,4606.1,4606.0,4.2845]
[1758154618651,1.1456,4606.1,4606.0,4.0908]
[1758154619446,1.17538106,4606.1,4606.0,4.2481]
[1758154620146,1.17538106,4606.1,4606.0,3.2078]
[1758154620352,1.17538106,4606.1,4605.5,0.883]
[1758154620353,0.9246,4605.6,4605.5,0.883]
[1758154621452,0.95438106,4605.6,4605.5,0.883]
[1758154621752,1.17538106,4605.6,4605.5,1.0403]
[1758154622342,1.17538106,4605.6,4605.5,0.883]
[1758154622754,1.17538106,4605.6,4605.5,0.6375]
[1758154622950,1.0873,4605.5,4605.4,3.8453]
[1758154623152,1.0873,4605.5,4605.4,3.4669]
[1758154623352,2.31826808,4605.5,4605.4,0.2591]
[1758154623549,1.11708106,4605.5,4605.3,0.43427753]
[1758154624345,1.11708106,4605.5,4605.3,0.81267753]
[1758154624552,0.95438106,4605.4,4605.3,0.81267753]
[1758154624750,0.95438106,4605.4,4605.3,1.07177753]
[1758154627659,0.95438106,4605.4,4605.3,1.31727753]
[1758154627960,1.17538106,4605.4,4605.3,1.31727753]
[1758154629358,0.95438106,4605.4,4605.3,1.31727753]
[1758154629657,1.17538106,4605.4,4605.3,1.31727753]
[1758154629846,1.17538106,4605.4,4605.3,1.07177753]
[1758154630052,1.17538106,4605.4,4605.3,0.69337753]
[1758154630253,1.17538106,4605.4,4605.3,1.06457753]
[1758154630862,1.17538106,4605.4,4605.3,0.43427753]
[1758154631560,0.95438106,4605.4,4605.3,0.43427753]
[1758154631759,1.17538106,4605.4,4605.3,0.43427753]
[1758154632749,1.17538106,4605.4,4605.3,1.32177753]
[1758154633153,0.02978106,4605.4,4605.3,2.55274561]
[1758154633357,3.4288,4606.0,4605.9,0.90693]
[1758154633655,0.221,4606.0,4605.9,1.27813]
[1758154634263,1.1255,4606.0,4605.9,0.8875]
[1758154634460,1.286,4606.0,4605.9,0.8875]
[1758154635965,1.1255,4606.0,4605.9,0.8875]
[1758154636357,0.2466,4606.4,4606.3,0.3906]
[1758154636562,0.6432,4606.7,4606.6,0.5163]
[1758154636756,0.6432,4606.7,4606.6,0.8875]
[1758154636958,0.8642,4606.7,4606.6,0.8875]
[1758154637257,0.47783388,4606.7,4606.6,0.8875]
[1758154637556,0.65343388,4606.7,4606.6,0.8875]
[1758154637761,0.87443388,4606.7,4606.6,0.8875]
[1758154638552,0.65343388,4606.7,4606.6,0.8875]
[1758154638861,0.23123388,4606.7,4606.6,0.8875]
[1758154639161,0.87443388,4606.7,4606.6,0.8875]
[1758154641563,1.13573388,4606.7,4606.6,0.8875]
[1758154641958,1.13573388,4606.7,4606.6,0.6246]
[1758154642958,1.13573388,4606.7,4606.6,0.8875]
[1758154643165,1.13573388,4606.7,4606.6,0.6246]
[1758154643558,1.13573388,4606.7,4606.6,0.8875]
[1758154646565,0.91473388,4606.7,4606.6,0.8875]
[1758154646768,1.13573388,4606.7,4606.6,0.8875]
[1758154649673,0.25683388,4606.7,4606.6,0.8875]
[1758154649867,0.47783388,4606.7,4606.6,0.8875]
[1758154650272,0.23123388,4606.7,4606.6,0.8875]
[1758154650767,0.01023388,4606.7,4606.6,0.8875]
[1758154650964,0.87443388,4606.7,4606.6,0.8875]
[1758154651972,1.13573388,4606.7,4606.6,0.8875]
[1758154652667,0.91473388,4606.7,4606.6,0.8875]
[1758154652972,1.13573388,4606.7,4606.6,0.8875]
[1758154655272,1.13573388,4606.7,4606.4,3.2078]
[1758154655470,1.065,4606.5,4606.3,0.1736]
[1758154655672,2.29596808,4606.5,4606.3,0.1736]
[1758154656267,0.01023388,4606.4,4606.3,0.1736]
[1758154656568,0.89963388,4606.4,4606.3,0.1736]
[1758154657174,0.89963388,4606.4,4606.2,0.0217]
[1758154657175,8.32452388,4606.4,4606.2,0.0217]
[1758154657368,1.06290701,4606.3,4606.2,0.0217]
[1758154657574,1.87029701,4606.3,4606.2,0.0217]
[1758154657775,1.65320701,4606.3,4606.2,0.0217]
[1758154658165,1.43220701,4606.3,4606.2,0.0217]
[1758154658366,1.65320701,4606.3,4606.2,0.6297]
[1758154658571,42.45320701,4606.3,4606.2,0.0217]
[1758154659377,1.65320701,4606.3,4606.2,0.3833]
[1758154659575,5.50100701,4606.3,4605.3,3.64207753]
[1758154659884,0.8894,4605.4,4605.3,1.04227753]
[1758154660082,1.1104,4605.4,4605.3,1.04227753]
[1758154660378,1.12063388,4605.4,4605.3,1.04227753]
[1758154661179,0.89963388,4605.4,4605.3,1.04227753]
[1758154661379,1.12063388,4605.4,4605.3,1.04227753]
[1758154661681,1.12063388,4605.4,4605.3,1.29187753]
[1758154662286,4.32843388,4605.4,4605.3,0.43427753]
[1758154662584,4.86230522,4605.4,4605.3,0.43427753]
[1758154668199,4.86230522,4605.4,4604.6,0.3616]
[1758154668498,1.07529404,4605.0,4604.6,0.496]
[1758154668688,0.221,4604.9,4604.7,0.3616]
[1758154668883,0.27093388,4605.0,4604.9,0.8576]
[1758154669090,0.49193388,4605.0,4604.9,0.8576]
[1758154669290,0.74283388,4605.0,4604.9,0.8576]
[1758154669491,0.90583388,4605.0,4604.9,0.8576]
[1758154670491,0.74283388,4605.0,4604.9,0.8576]
[1758154670692,1.80789404,4605.0,4604.9,0.8576]
[1758154672696,1.82893792,4605.0,4604.9,0.8576]
[1758154673702,1.83299725,4605.0,4604.9,0.8576]
[1758154674802,0.25633709,4605.0,4604.9,0.8576]
[1758154676301,0.03533709,4605.0,4604.9,0.8576]
[1758154676504,0.25633709,4605.0,4604.9,0.8576]
[1758154680614,0.03533709,4605.0,4604.9,0.8576]
[1758154680814,0.25633709,4605.0,4604.9,0.8576]
[1758154681110,0.49583709,4605.0,4604.9,0.8576]
[1758154682618,0.25633709,4605.0,4604.9,0.8576]
[1758154683012,0.03533709,4605.0,4604.9,0.8576]
[1758154683317,0.25633709,4605.0,4604.9,0.8576]
[1758154683917,0.03533709,4605.0,4604.9,0.8576]
[1758154684117,0.25633709,4605.0,4604.9,0.8576]
[1758154685318,0.03533709,4605.0,4604.9,0.8576]
[1758154685518,0.25633709,4605.0,4604.9,0.8576]
[1758154687416,0.79107705,4605.0,4604.9,0.8576]
[1758154688219,0.57007705,4605.0,4604.9,2.31338016]
[1758154688421,0.25633709,4605.0,4604.9,2.31338016]
[1758154689422,0.25633709,4605.0,4604.9,5.52118016]
[1758154691219,35.178,4605.8,4605.7,0.5013]
[1758154691426,0.53682314,4605.8,4605.7,1.56636016]
[1758154691732,0.78442314,4605.8,4605.7,0.5013]
[1758154692018,1.03322314,4605.8,4605.7,0.8832]
[1758154692226,1.22342314,4605.8,4605.7,0.3819]
[1758154693125,1.03322314,4605.8,4605.7,0.8832]
[1758154693425,1.25422314,4605.8,4605.7,0.8832]
[1758154694927,0.75782314,4605.8,4605.7,0.8832]
[1758154695730,0.14052314,4605.8,4605.7,6.33891016]
[1758154695918,1.94236016,4607.1,4607.0,0.8832]
[1758154696119,2.16336016,4607.1,4607.0,0.8832]
[1758154696926,2.16336016,4607.1,4607.0,0.629]
[1758154697526,2.16336016,4607.1,4607.0,0.8832]
[1758154697932,2.16336016,4607.1,4607.0,1.0403]
[1758154698134,2.16336016,4607.1,4607.0,0.8832]
[1758154699628,0.2476,4606.6,4606.5,1.0403]
[1758154699828,0.4686,4606.6,4606.5,1.0403]
[1758154700519,0.2476,4606.6,4606.5,1.0403]
[1758154700828,0.4686,4606.6,4606.5,1.0403]
[1758154701423,0.2476,4606.6,4606.5,1.0403]
[1758154701622,0.4686,4606.6,4606.5,1.0403]
[1758154703327,0.8495,4606.6,4606.5,1.0403]
[1758154704422,0.4686,4606.6,4606.5,1.0403]
[1758154704624,35.186,4607.4,4607.1,0.5013]
[1758154704932,3.2078,4607.8,4607.7,0.8832]
[1758154705130,3.2078,4607.8,4607.7,1.94826016]
[1758154705131,0.221,4607.8,4607.7,1.94826016]
[1758154705327,0.3809,4608.3,4608.2,0.2471]
[1758154705532,3.2078,4608.5,4608.3,0.3819]
[1758154705733,3.2078,4608.5,4608.4,0.8832]
[1758154705934,3.4288,4608.5,4608.4,0.8832]
[1758154706234,3.6764,4608.5,4608.4,0.8832]
[1758154706625,3.2078,4609.1,4608.4,0.8832]
[1758154706825,0.2476,4608.9,4608.8,0.5013]
[1758154707425,0.6285,4608.9,4608.8,0.8832]
[1758154707832,1.94236016,4608.9,4608.8,0.8832]
[1758154708027,2.16336016,4608.9,4608.8,0.8832]
[1758154710333,0.8773,4608.9,4608.8,0.8832]
[1758154710534,1.0983,4608.9,4608.8,0.8832]
[1758154710938,2.16336016,4608.9,4608.8,0.8832]
[1758154711433,0.6285,4608.3,4608.2,3.7091]
[1758154711634,0.8495,4608.3,4608.2,3.7091]
[1758154712135,0.8495,4608.3,4608.2,4.091]
[1758154713736,1.0983,4608.3,4608.2,0.8832]
[1758154715941,0.8773,4608.3,4608.2,0.8832]
[1758154716140,1.0983,4608.3,4608.2,0.8832]
[1758154718236,0.8773,4608.3,4608.2,0.8832]
[1758154718441,1.0983,4608.3,4608.2,0.8832]
[1758154722342,0.8773,4608.3,4608.2,0.8832]
[1758154722542,1.0983,4608.3,4608.2,0.8832]
[1758154723148,0.8773,4608.3,4608.2,0.8832]
[1758154723343,0.4686,4608.3,4608.2,0.8832]
[1758154726950,1.0811,4608.3,4608.2,0.8832]
[1758154727850,1.0811,4608.3,4608.2,0.629]
[1758154729953,1.0811,4608.3,4607.9,0.3816]
[1758154730154,1.0811,4608.3,4607.8,0.1953]
[1758154730451,0.8601,4608.3,4607.8,0.1953]
[1758154730652,0.8601,4608.3,4608.2,0.6416]
[1758154730844,0.1459,4608.0,4607.9,0.3816]
[1758154731050,1.0081,4608.0,4607.9,0.3816]
[1758154731272,1.0081,4608.0,4607.9,0.6416]
[1758154732249,1.54065413,4608.0,4607.9,0.6416]
[1758154732648,1.54065413,4608.0,4607.9,0.8841]
[1758154732649,1.39475413,4608.0,4607.9,0.8841]
[1758154734650,1.61575413,4608.0,4607.9,0.8841]
[1758154736656,1.24675413,4608.0,4607.9,0.8841]
[1758154736857,1.00325413,4608.0,4607.9,1.27456]
[1758154737155,1.00325413,4608.0,4607.9,0.8841]
[1758154737361,1.37225413,4608.0,4607.9,0.8841]
[1758154737951,1.37225413,4608.0,4607.9,1.27456]
[1758154738251,0.53255413,4608.0,4607.9,5.27456]
[1758154738456,0.221,4608.2,4608.1,0.89294]
[1758154738657,0.221,4608.2,4608.1,2.50525449]
[1758154738956,0.2497,4608.5,4608.4,0.8841]
[1758154739151,0.4707,4608.5,4608.4,0.8841]
[1758154741058,3.6872,4609.0,4608.9,0.4881]
[1758154741258,4.48050293,4609.0,4608.9,0.8742]
[1758154741960,4.62720293,4609.0,4608.9,0.6343]
[1758154742257,0.3649,4608.9,4608.2,0.3861]
[1758154742448,0.2394,4608.4,4608.3,0.8742]
[1758154742650,0.4604,4608.4,4608.3,0.8742]
[1758154743461,1.0653,4608.4,4608.3,0.8742]
[1758154748361,0.2394,4608.4,4608.3,0.8742]
[1758154748658,0.221,4608.4,4608.3,0.8742]
[1758154748855,0.8347,4608.6,4608.5,0.999]
[1758154749056,0.8347,4608.6,4608.5,2.22971449]
[1758154749856,0.8347,4608.6,4608.5,0.999]
[1758154750357,1.0823,4608.6,4608.5,0.999]
[1758154751562,0.8613,4608.6,4608.5,0.999]
[1758154751860,1.0823,4608.6,4608.5,0.999]
[1758154752966,1.0823,4608.6,4608.5,0.8458]
[1758154754567,1.0823,4608.6,4608.5,0.999]
[1758154755971,0.8613,4608.6,4608.5,0.999]
[1758154756268,1.0813,4608.6,4608.5,0.999]
[1758154757566,0.8613,4608.6,4608.5,0.999]
[1758154757766,0.22,4608.6,4608.5,0.999]
[1758154757966,0.8337,4608.6,4608.5,0.999]
[1758154760074,1.0813,4608.6,4608.5,0.999]
[1758154762076,0.8613,4608.6,4608.5,0.8458]
[1758154762275,1.0813,4608.6,4608.5,0.8458]
[1758154763875,0.147,4608.5,4608.3,0.1951]
[1758154764073,2.62333596,4608.4,4608.3,0.1951]
[1758154764270,2.62333596,4608.4,4608.3,0.1735]
[1758154764473,2.62341674,4608.4,4608.3,0.1735]
[1758154765275,2.84041674,4608.4,4608.3,0.1735]
[1758154765576,6.84041674,4608.4,4607.4,0.3504]
[1758154765775,6.84041674,4608.4,4607.1,3.2078]
[1758154765776,0.4874,4607.3,4607.2,0.3504]
[1758154765979,0.3739,4607.2,4607.1,3.2078]
[1758154766175,1.39270225,4607.2,4607.1,3.2078]
[1758154766379,1.39270225,4607.2,4607.1,3.5582]
[1758154766878,1.39270225,4607.2,4607.1,0.5901]
[1758154768280,0.8613,4607.2,4607.1,0.8458]
[1758154768479,0.3739,4607.9,4607.2,0.3504]
[1758154768771,0.8613,4607.9,4607.8,0.8458]
[1758154768972,1.84651936,4607.9,4607.8,0.5901]
[1758154769179,1.61177314,4607.9,4607.8,0.5901]
[1758154769884,0.8613,4607.3,4607.2,0.3504]
[1758154770085,0.8613,4607.3,4607.0,0.1736]
[1758154770086,1.0813,4607.3,4607.1,0.3504]
[1758154770582,0.7074,4607.3,4607.1,0.3504]
[1758154770775,0.6137,4607.2,4607.1,0.8458]
[1758154770974,0.8337,4607.2,4607.1,0.8458]
[1758154771378,1.0813,4607.2,4607.1,0.8458]
[1758154772276,0.8613,4607.2,4607.1,0.8458]
[1758154772576,0.7074,4607.2,4607.1,2.07651449]
[1758154772976,0.7074,4607.2,4607.1,0.8458]
[1758154773172,1.0813,4607.2,4607.1,0.8458]
[1758154773376,1.0813,4607.2,4606.9,0.0217]
[1758154773579,1.0813,4607.2,4607.0,0.3504]
[1758154774670,0.8613,4607.2,4606.9,0.0217]
[1758154774981,1.0813,4607.1,4607.0,0.5901]
[1758154775476,1.0813,4607.1,4607.0,0.8458]
[1758154776179,0.8483,4607.9,4607.8,0.8513]
[1758154776378,0.4746,4607.9,4607.8,2.08201449]
[1758154777371,35.163,4608.2,4607.8,1.72301449]
[1758154777570,3.2078,4608.8,4608.5,0.1436]
[1758154777875,3.4624,4608.8,4608.7,0.8513]
[1758154778080,3.6824,4608.8,4608.7,0.8513]
[1758154779275,3.9312,4608.8,4608.7,0.8513]
[1758154779481,4.2761,4608.8,4608.7,0.8513]
[1758154779878,4.2761,4608.8,4608.7,0.6016]
[1758154780079,4.2761,4608.8,4608.7,0.359]
[1758154780679,0.8483,4608.3,4608.2,3.7001]
[1758154780884,0.8483,4608.3,4608.2,3.4504]
[1758154781081,2.29901449,4608.3,4608.2,3.2078]
[1758154781277,2.29901449,4608.3,4607.7,3.2078]
[1758154781479,0.8483,4607.8,4607.7,4.0591]
[1758154781782,1.0683,4607.8,4607.7,4.0591]
[1758154782485,0.5034,4607.8,4607.7,4.0591]
[1758154782686,0.7234,4607.8,4607.7,4.0591]
[1758154782882,1.0683,4607.8,4607.4,0.359]
[1758154783785,2.13240017,4607.8,4607.4,0.359]
[1758154783980,0.5034,4607.3,4607.2,3.2078]
[1758154784186,1.0683,4607.3,4607.2,3.5668]
[1758154784786,1.0683,4607.3,4607.2,3.8094]
[1758154784977,1.0683,4607.3,4607.2,4.0591]
[1758154785179,0.7234,4607.3,4607.2,4.0591]
[1758154785377,1.06410017,4607.8,4607.2,4.0591]
[1758154785579,0.4746,4607.7,4607.6,1.91540017]
[1758154785984,0.2546,4608.1,4608.0,0.6359]
[1758154786288,0.4746,4608.1,4608.0,0.9949]
[1758154786688,3.5527,4608.7,4608.0,1.70000017]
[1758154786889,0.78701689,4608.6,4608.5,0.9949]
[1758154787089,0.4746,4608.6,4608.5,0.9949]
[1758154787983,0.147,4608.5,4608.0,0.1436]
[1758154788187,0.147,4608.5,4607.7,4.27190017]
[1758154788188,0.3449,4608.0,4607.7,3.2078]
[1758154788384,0.2546,4607.8,4607.7,3.7001]
[1758154788592,0.2546,4607.8,4607.7,4.0591]
[1758154789196,0.5034,4607.8,4607.7,4.0591]
[1758154789393,0.8483,4607.8,4607.7,4.0591]
[1758154789594,0.3449,4607.7,4607.2,3.2078]
[1758154789788,0.2546,4607.3,4607.2,4.0591]
[1758154789988,0.2546,4607.8,4607.7,0.8513]
[1758154790289,1.0683,4607.8,4607.2,4.27190017]
[1758154790495,0.8483,4607.3,4607.2,3.8094]
[1758154790695,1.0683,4607.3,4607.2,3.8094]
[1758154791292,1.0683,4607.3,4606.9,0.3807]
[1758154791596,1.91240017,4607.0,4606.9,0.3807]
[1758154792785,1.91240017,4607.0,4606.9,0.359]
[1758154793184,0.8483,4607.0,4606.9,0.6016]
[1758154793994,2.05940017,4607.0,4606.6,0.359]
[1758154794297,0.8483,4606.7,4606.6,0.359]
[1758154794490,0.8483,4606.7,4606.6,0.6016]
[1758154794892,1.0683,4606.7,4606.6,0.6016]
[1758154795494,0.8483,4606.6,4606.5,0.1736]
[1758154795693,1.63207811,4606.6,4606.5,0.1736]
[1758154796596,1.84915811,4606.6,4606.5,0.1736]
[1758154796898,0.8483,4606.4,4606.3,0.0217]
[1758154797101,0.147,4606.0,4605.8,3.2078]
[1758154797403,0.3449,4605.8,4605.2,0.359]
[1758154797596,0.8483,4605.3,4605.2,0.8513]
[1758154797796,1.0683,4605.3,4605.2,0.8513]
[1758154798991,0.4888,4605.9,4605.8,0.8743]
[1758154799195,3.2078,4606.8,4606.7,0.5]
[1758154799393,4.80421284,4606.8,4606.7,0.8743]
[1758154799599,4.2722,4606.8,4606.7,0.8743]
[1758154799898,4.0522,4606.8,4606.7,0.8743]
[1758154800099,0.2432,4607.1,4607.0,0.6404]
[1758154800304,1.24067246,4607.1,4606.5,0.1404]
[1758154800602,0.8444,4606.7,4606.6,0.8743]
[1758154800904,0.7088,4606.7,4606.6,0.8743]
[1758154801699,4.2722,4606.7,4606.6,0.6254]
[1758154801901,4.2722,4606.7,4606.1,0.3743]
[1758154802408,3.2078,4606.7,4606.6,0.8743]
[1758154802601,3.2078,4607.2,4606.7,0.3743]
[1758154802801,0.7088,4607.1,4607.0,1.0147]
[1758154803005,1.0644,4607.1,4607.0,1.0147]
[1758154803205,0.4888,4607.1,4607.0,1.0147]
[1758154803406,3.2078,4607.2,4607.1,0.3743]
[1758154803602,0.0842,4609.0,4607.1,0.5]
[1758154803603,3.2078,4607.7,4607.1,0.5]
[1758154803802,0.2432,4607.6,4607.5,0.6404]
[1758154804313,3.2078,4607.7,4607.5,0.6404]
[1758154804608,3.2078,4607.7,4607.6,0.8743]